{"text_format":"1","workbook":"xlsx","n_sheets":16,"sheets":["PRINCIPAL","1 COMPOSIÇÃO DO NSGA","2 ACESSO A TERRA","1 FICHA DE REGISTRO","DADOS","3 LINHA DO TEMPO","4 SUBSISTEMAS","5 DIVISÃO SOCIAL DO TRABALHO","DIVISAO","6 ANÁLISE QUALITATIVA","AUTONOMIA","RESPONSIVIDADE","INTEGRAÇÃO SOCIAL","EQUIDADE DE GÊNERO","PROTAGONISMO DA JUVENTU","SÍNTESE"],"not_rendered":{"charts":6,"images":21,"macros":1,"external_links":0,"defined_names":0,"comments":8,"pivot_tables":0},"unopened":[],"bounds":{"document_bytes":16777216,"sheet_cells":100000,"rows_first":2000,"rows_last":500,"rows_between":2000,"halvings":0,"cell_chars":16384,"cell_head_chars":4096},"cells_cut":0,"cells_raw":0,"read":"whole","date_system":"1900"}

{"sheet":"PRINCIPAL","index":0,"n_rows":20,"n_cols":14,"rows_kept":20,"cut":false,"hidden":false,"merged":[[19,4,20,4],[15,2,16,3],[15,4,16,6],[15,8,16,10],[5,2,6,4],[5,5,6,6],[5,8,6,10],[12,2,13,2],[12,3,13,3],[12,5,13,6],[12,7,13,9],[19,2,20,3],[2,5,2,14],[8,0,9,0],[10,0,11,0],[12,0,13,0],[11,2,11,7],[8,2,9,3],[12,11,13,12],[1,2,1,15],[14,0,15,0],[16,0,17,0],[18,0,19,0],[4,0,7,0],[5,11,6,17],[8,4,9,17],[12,13,13,17],[15,11,16,17],[19,13,20,17],[19,12,20,12],[19,10,20,11],[18,2,18,6],[19,6,20,6],[19,7,20,8],[19,9,20,9]]}
[]
[null,null,"ANÁLISE DE SUSTENTABILIDADE "]
[null,null,null,null,null,"Método Lume -  Análise Qualitativa"]
[]
["USE O MENU ABAIXO PARA NAVEGAR NO SISTEMA"]
[null,null,"DATA DA ENTREVISTA",null,null,"2022-04-30",null,null,"RESPONSÁVEL PELA ENTREVISTA",null,null,"Marcio"]
[]
[]
["COMPOSIÇÃO DO NSGA",null,"NSGA",null,"Família Silva"]
[]
["ACESSO A TERRA"]
[null,null,"INFORMAÇÕES DO NSGA"]
["LINHA DO TEMPO",null,"UF","PB",null,"MUNICÍPIO",null,"Solânea",null,null,null,"DISTRITO"]
[]
["SUBSISTEMAS"]
[null,null,"COMUNIDADE",null,"Gameleira",null,null,null,"NOME DA PROPRIEDADE",null,null,"Gameleira"]
["DIVISÃO SOCIAL DO TRABALHO"]
[]
["ANÁLISE QUALITATIVA",null,"COORDENADAS DO ESTABELECIMENTO"]
[null,null,"DISTÂNCIA A SEDE DO MUNICIPIO",null,"12km",null,"LATITUDE",54545,null,"LONGITUDE",-45454,null,"ALTITUDE",456]

{"sheet":"1 COMPOSIÇÃO DO NSGA","index":1,"n_rows":20,"n_cols":9,"rows_kept":20,"cut":false,"hidden":false,"merged":[[14,1,14,2],[15,1,15,2],[0,0,3,8],[7,0,7,1],[7,7,7,8],[9,3,9,4],[7,2,7,5],[10,0,10,8],[11,0,11,8],[12,1,12,2],[13,1,13,2],[16,1,16,2],[17,1,17,2],[18,1,18,2],[19,1,19,2],[20,1,20,2]]}
["COMPOSIÇÃO DO NSGA"]
[]
[]
[]
[]
[]
[]
["NSGA:",null,{"$f":"PRINCIPAL!E9","v":"Família Silva"},null,null,null,"PROPRIEDADE:",{"$f":"PRINCIPAL!L16","v":"Gameleira"}]
[]
["UF",{"$f":"PRINCIPAL!D13","v":"PB"},"MUNICÍPIO:",{"$f":"PRINCIPAL!H13","v":"Solânea"},null,"DISTRITO:",{"$f":"PRINCIPAL!N13","v":0},"COMUNIDADE:",{"$f":"PRINCIPAL!E16","v":"Gameleira"}]
[]
["COMPOSIÇÃO DO NSGA (NÚCLEO SOCIAL DE GESTÃO DO AGROECOSSISTEMA)"]
["N","Nome",null,"Parentesco","Sexo","Data de Nascimento","Reside no Agroecossistema","Tempo Dedicado ao Agroecossistema","Ocupação fora do Agroecossistema"]
[1,"Vera Lucena",null," Esposo (a)","F","1987-11-21","SIM","Integral"]
[2,"Luis Lucena",null," Esposo (a)","M",null,"SIM","Integral"]
[3,"Leila Lucena",null,"Filho(a)","F",null,"SIM","Pessoa com limitação para trabalhar"]
[4,"Lara Lucena",null,"Filho(a)","F",null,"SIM","Parcial","Estudante"]
[5,"Lidio Lucena",null,"Filho(a)","M",null,"SIM","Parcial","Estudante"]
[6,"Maria Macena",null,"Filho(a)","F",null,"SIM","Parcial","Estudante"]
[7,"Junior",null,"Filho(a)","M",null,"SIM","Não Trabalha","Criança"]

{"sheet":"2 ACESSO A TERRA","index":2,"n_rows":23,"n_cols":9,"rows_kept":23,"cut":false,"hidden":false,"merged":[[0,0,3,8],[10,0,10,8],[7,0,7,1],[7,2,7,5],[7,7,7,8],[15,4,15,5],[12,1,12,3],[13,1,13,3],[14,1,14,3],[15,1,15,3],[11,0,11,8],[9,3,9,4],[12,4,12,5],[13,4,13,5],[14,4,14,5],[20,1,20,3],[22,0,23,7],[22,8,23,8],[16,4,16,5],[17,4,17,5],[18,4,18,5],[19,4,19,5],[20,4,20,5],[18,1,18,3],[19,1,19,3],[17,1,17,3],[16,1,16,3]]}
["ACESSO À TERRA"]
[]
[]
[]
[]
[]
[]
["NSGA:",null,{"$f":"PRINCIPAL!E9","v":"Família Silva"},null,null,null,"PROPRIEDADE:",{"$f":"PRINCIPAL!L16","v":"Gameleira"}]
[]
["UF",{"$f":"PRINCIPAL!D13","v":"PB"},"MUNICÍPIO:",{"$f":"PRINCIPAL!H13","v":"Solânea"},null,"DISTRITO:",{"$f":"PRINCIPAL!N13","v":0},"COMUNIDADE:",{"$f":"PRINCIPAL!E16","v":"Gameleira"}]
[]
["ACESSO À TERRA E OUTROS ESPAÇOS NATURAIS"]
["ÁREA","DENOMINAÇÃO DA TERRA",null,null,"FORMA DE ACESSO A TERRA",null,"MUNICÍPIO","DISTÂNCIA DA ÀREA AO LOCAL DE MORADIA (km)","DIMENSÃO DA ÁREA (hectares)"]
[1,"Sitio Lagoa Seca",null,null,"Própria",null,"Pocinhos",0,21]
[2,"Sítio Beneficio",null,null,"Própria",null,"Pocinhos",1.5,11]
[3]
[4]
[5]
[6]
[7]
[8]
[]
["TOTAL",null,null,null,null,null,null,null,{"$f":"SUM(I14:I21)","v":32}]

{"sheet":"1 FICHA DE REGISTRO","index":3,"n_rows":25,"n_cols":17,"rows_kept":25,"cut":false,"hidden":true,"merged":[[7,0,7,3],[7,4,7,16],[21,1,21,2],[22,1,22,2],[20,1,20,2],[11,3,14,6],[11,12,14,13],[16,14,16,15],[17,14,17,15],[20,14,20,15],[9,11,10,11],[23,1,23,2],[23,14,23,15],[16,1,16,2],[10,7,10,8],[17,1,17,2],[18,1,18,2],[19,1,19,2],[15,0,15,8],[9,10,10,10],[9,12,10,12],[9,1,10,1],[10,3,10,4],[10,5,10,6],[9,3,9,4],[24,10,24,15],[1,13,1,15],[25,10,25,15],[18,14,18,15],[21,14,21,15],[19,14,19,15],[22,14,22,15],[0,0,3,10],[1,11,1,12],[2,11,2,12],[2,13,2,15],[15,10,15,16],[9,15,10,15],[9,16,10,16],[9,0,10,0],[24,1,24,2]]}
["FICHA DE REGISTRO DE INFORMAÇÕES DE CAMPO"]
[null,null,null,null,null,null,null,null,null,null,null,"DATA DA ENTREVISTA",null,"22 DE OUTUBRO DE 2022"]
[null,null,null,null,null,null,null,null,null,null,null,"TÉCNICO RESPONSÁVEL",null,"Giovana opes e Adriana Vieira"]
[]
[]
[]
[]
["NSGA",null,null,null,"Família Leal"]
[]
["UF","MS","MUNICIPIO:","APODI",null,"DISTRITO:","ALGODAO","COMUNIDADE:","SITIO MELANCIAS",null,"DISTÂNCIA À SEDE DO MUNICIPIO","12 KM","COORDENADAS DO ESTABELECIMENTO ","LATITUDE",5741677,"ALTITUDE METROS","720 MTS"]
[null,null,"DISTRITO:",null,null,"NOME DA PROPRIEDADE:",null,"MARIA OSANA GURGEL DE OLIVEIRA",null,null,null,null,null,"LONGITUDE",-37843585]
[]
[]
[]
[]
[null,null,null,null,null,null,null,null,null,null,"ACESSO Á TERRA E OUTROS ESPAÇOS NATURAIS"]
["N","Nome",null,"Parentesco","Sexo","Data de Nascimento","Reside no Agroecossistema","Tempo Dedicado ao Acroecossistema","Ocupação fora do Agroecossistema",null,"ÀREA","DENOMINAÇÃO DA ÁREA","FORMA DE ACESSO À TERRA","MUNICIPIO","DISTÂNCIA DA ÀREA AO LOCAL DE MORADIA (KM)",null,"DIMENSÃO em (há)"]
[1,"Maria Osana Gurgel de Oliveira",null," Esposo (a)","M","1987-11-21","SIM","Parcial",null,null,1,null,"Arrendamento","APODI","0,0 km",null,30]
[2,"Laerte de Oliveira Costa",null," Esposo (a)","F",null,"NÃO","Não Trabalha",null,null,2,"Pasto","Comodato","Apodi","6 km",null,0.6]
[3,"Braz Antonio de Oliveira Costa",null,"Avô (ó)","M",null,"SIM","Parcial"]
[4,"Mateus leal",null,"Filho(a)","F",null,"NÃO","Integral"]
[5,"Marcos sales",null,"Mãe","M",null,"SIM","Pessoa com limitação para trabalhar"]
[6,"José gomes",null,"Pai","F",null,"NÃO","Parcial","Estudante"]
[7,"Amanda vieira",null,"Mãe","M",null,"SIM","Parcial"]
[8,"Berenice leal",null,"Pai","F",null,"NÃO","Não Trabalha",null,null,"TOTAL DA ÁREA",null,null,null,null,null,{"$f":"SUM(Q18:Q24)","v":30.6}]

{"sheet":"DADOS","index":4,"n_rows":32,"n_cols":17,"rows_kept":32,"cut":false,"hidden":true,"merged":[[2,2,2,5],[1,7,1,8],[2,16,2,19]]}
[]
[null,null,null,null,null,null,null,"SEXO ",null,null,"Parentesco"]
[null,null,"ESTADOS E CAPITAIS",null,null,null,null,"M","MASCULINO",null," Esposo (a)",null,null,"SIGAS UF",null,null,"tempo dedicado ao agroecossistema"]
[null,null,"Sigla","Capital","Gentílico",null,null,"F","FEMININO",null,"Filho(a)",null,null,null,null,null,"Integral"]
[null,null,"Acre","AC","Rio Branco","acriano",null,null,null,null,"Primo(a)",null,null,null,null,null,"Parcial"]
[null,null,"Alagoas","AL","Maceió","alagoano",null,null,null,null,"Mãe",null,null,"AC",null,null,"Não Trabalha"]
[null,null,"Amapá","AP","Macapá","amapaense",null,null,null,null,"Pai",null,null,"AL",null,null,"Pessoa com limitação para trabalhar"]
[null,null,"Amazonas","AM","Manaus","Amazonense",null,null,null,null,"Avô (ó)",null,null,"AP"]
[null,null,"Bahia","BA","Salvador","baiano",null,null,null,null,"Tio(a)",null,null,"AM"]
[null,null,"Ceará","CE","Fortaleza","cearense",null,null,null,null,"Agregado",null,null,"BA"]
[null,null,"Distrito Federal","DF","Brasília","brasiliense",null,null,null,null,"Outros",null,null,"CE"]
[null,null,"Espírito Santo","ES","Vitória","capixaba ou espírito-santense",null,null,null,null,null,null,null,"DF"]
[null,null,"Goiás","GO","Goiânia","goiano",null,null,null,null,null,null,null,"ES",null,null,"reside no agroecossistema"]
[null,null,"Maranhão","MA","São Luís","maranhense",null,null,null,null,null,null,null,"GO",null,null,"SIM"]
[null,null,"Mato Grosso","MT","Cuiabá","mato-grossense",null,null,null,null,null,null,null,"MA",null,null,"NÃO"]
[null,null,"Mato Grosso do Sul","MS","Campo Grande","sul-mato-grossense ou mato-grossense-do-sul",null,null,null,null,null,null,null,"MT"]
[null,null,"Minas Gerais","MG","Belo Horizonte","mineiro",null,null,"Forma de acesso a terra",null,null,null,null,"MS"]
[null,null,"Paraná","PR","Curitiba","paranaense",null,null,"Própria",null,null,null,null,"MG"]
[null,null,"Paraíba","PB","João Pessoa","paraibano",null,null,"Posse",null,null,null,null,"PR"]
[null,null,"Pará","PA","Belém","paraense",null,null,"Arrendamento",null,null,null,null,"PB"]
[null,null,"Pernambuco","PE","Recife","pernambucano",null,null,"Meação",null,null,null,null,"PA"]
[null,null,"Piauí","PI","Teresina","piauiense",null,null,"Parceria",null,null,null,null,"PE"]
[null,null,"Rio Grande do Norte","RN","Natal","potiguar, norte-rio-grandense, rio-grandense-do-norte",null,null,"Cessão",null,null,null,null,"PI"]
[null,null,"Rio Grande do Sul","RS","Porto Alegre","gaúcho ou sul-rio-grandense",null,null,"Comodato",null,null,null,null,"RN"]
[null,null,"Rio de Janeiro","RJ","Rio de Janeiro","fluminense",null,null,"Direito de uso",null,null,null,null,"RS"]
[null,null,"Rondônia","RO","Porto Velho","rondoniense ou rondoniano",null,null,"Uso comunitário",null,null,null,null,"RJ"]
[null,null,"Roraima","RR","Boa Vista","roraimense",null,null,"Outros",null,null,null,null,"RO"]
[null,null,"Santa Catarina","SC","Florianópolis","catarinense ou barriga-verde",null,null,null,null,null,null,null,"RR"]
[null,null,"Sergipe","SE","Aracaju","sergipano ou sergipense",null,null,null,null,null,null,null,"SC"]
[null,null,"São Paulo","SP","São Paulo","paulista",null,null,null,null,null,null,null,"SE"]
[null,null,"Tocantins","TO",null,null,null,null,null,null,null,null,null,"SP"]
[null,null,null,null,null,null,null,null,null,null,null,null,null,"TO"]

{"sheet":"3 LINHA DO TEMPO","index":5,"n_rows":20,"n_cols":14,"rows_kept":20,"cut":false,"hidden":false,"merged":[[5,10,5,11],[0,2,2,7],[13,0,13,1],[14,0,19,0],[7,0,12,0],[5,3,5,4]]}
[null,null,"LINHA DO TEMPO DO AGROECOSSISTEMA"]
[]
[]
[]
[]
[null,null,"NSGA:",{"$f":"PRINCIPAL!E9","v":"Família Silva"},null,"Municipio:",{"$f":"'1 COMPOSIÇÃO DO NSGA'!D10","v":"Solânea"},"Distrito",{"$f":"PRINCIPAL!N13","v":0},"NOME DA PROPRIEDADE:",{"$f":"PRINCIPAL!L16","v":"Gameleira"},null,"DISTÂNCIA À SEDE DO MUNICÍPIO",{"$f":"PRINCIPAL!E20","v":"12km"}]
[]
["   AGROECOSSISTEMA","Outros",""]
[null,"Capital fundiário e equipamentos"]
[null,"Produção animal"]
[null,"Produção vegetal"]
[null,"Sistema peridoméstico"]
[null,"Ciclo de vida da família"]
["ANO"]
["   CONTEXTO EXTERNO","Participação na gestão de bens comuns"]
[null,"Acesso a conhecimento"]
[null,"Integração a espaços político-organizativos"]
[null,"Acesso aos mercados"]
[null,"Acesso a políticas públicas"]
[null,"Outros"]

{"sheet":"4 SUBSISTEMAS","index":6,"n_rows":22,"n_cols":9,"rows_kept":22,"cut":false,"hidden":false,"merged":[[7,8,7,11],[9,3,9,4],[25,2,25,3],[24,2,24,3],[20,3,20,11],[21,3,21,11],[21,0,21,2],[22,0,22,2],[22,3,22,11],[23,0,23,2],[23,3,23,11],[20,0,20,2],[19,0,19,2],[18,0,18,2],[17,0,17,2],[16,0,16,2],[0,0,3,11],[18,3,18,11],[19,3,19,11],[14,3,14,11],[13,3,13,11],[12,3,12,11],[15,0,15,2],[14,0,14,2],[13,0,13,2],[15,3,15,11],[16,3,16,11],[17,3,17,11],[7,1,7,2],[9,8,9,11],[12,0,12,2],[7,4,7,6]]}
["SUBSISTEMAS"]
[]
[]
[]
[]
[]
[]
["NSGA:",{"$f":"PRINCIPAL!E9","v":"Família Silva"},null,"PROPRIEDADE:",{"$f":"PRINCIPAL!L16","v":"Gameleira"},null,null,"DATA ENTREVISTA:",{"$f":"PRINCIPAL!F6","v":"2022-04-30"}]
[]
["UF:",{"$f":"PRINCIPAL!D13","v":"PB"},"MUNICÍPIO:",{"$f":"PRINCIPAL!H13","v":"Solânea"},null,"DISTRITO:",{"$f":"PRINCIPAL!N13","v":0},"COMUNIDADE:",{"$f":"PRINCIPAL!E16","v":"Gameleira"}]
[]
[]
["SUBSISTEMA",null,null,"DESCRIÇÃO (área ocupada, número de animais, principais produções etc)."]
["Roçado"]
["Roçado Diversificado"]
["Algodão"]
["Bovinos"]
["Ovinos Caprinos"]
["Quintal Aves"]
["Quintal porcos"]
["Quintal frutas, horta e medicinais"]
["Comercialização"]

{"sheet":"5 DIVISÃO SOCIAL DO TRABALHO","index":7,"n_rows":30,"n_cols":19,"rows_kept":30,"cut":false,"hidden":false,"merged":[[28,0,28,1],[6,20,8,20],[0,0,3,1],[4,0,4,1],[7,0,17,0],[20,0,24,0],[26,0,26,1]]}
["DIVISÃO DO TRABALHO"]
[]
[]
[null,null,"Exibir","Ocutar"]
[null,null,"Tempo dedicado",null,null,null,null,null,null,null,null,"Tomada de decisão"]
["NSGA:",{"$f":"PRINCIPAL!E9","v":"Família Silva"},{"$f":"IFERROR(LEFT('1 COMPOSIÇÃO DO NSGA'!$B14,SEARCH(\" \",'1 COMPOSIÇÃO DO NSGA'!$B14,1)-1),\" \")","v":"Vera"},{"$f":"IFERROR(LEFT('1 COMPOSIÇÃO DO NSGA'!$B15,SEARCH(\" \",'1 COMPOSIÇÃO DO NSGA'!$B15,1)-1),\" \")","v":"Luis"},{"$f":"IFERROR(LEFT('1 COMPOSIÇÃO DO NSGA'!$B16,SEARCH(\" \",'1 COMPOSIÇÃO DO NSGA'!$B16,1)-1),\" \")","v":"Leila"},{"$f":"IFERROR(LEFT('1 COMPOSIÇÃO DO NSGA'!$B17,SEARCH(\" \",'1 COMPOSIÇÃO DO NSGA'!$B17,1)-1),\" \")","v":"Lara"},{"$f":"IFERROR(LEFT('1 COMPOSIÇÃO DO NSGA'!$B18,SEARCH(\" \",'1 COMPOSIÇÃO DO NSGA'!$B18,1)-1),\" \")","v":"Lidio"},{"$f":"IFERROR(LEFT('1 COMPOSIÇÃO DO NSGA'!$B19,SEARCH(\" \",'1 COMPOSIÇÃO DO NSGA'!$B19,1)-1),\" \")","v":"Maria"},{"$f":"IFERROR(LEFT('1 COMPOSIÇÃO DO NSGA'!$B20,SEARCH(\" \",'1 COMPOSIÇÃO DO NSGA'!$B20,1)-1),\" \")","v":" "},{"$f":"IFERROR(LEFT('1 COMPOSIÇÃO DO NSGA'!$B21,SEARCH(\" \",'1 COMPOSIÇÃO DO NSGA'!$B21,1)-1),\" \")","v":" "},null,{"$f":"IFERROR(LEFT('1 COMPOSIÇÃO DO NSGA'!$B14,SEARCH(\" \",'1 COMPOSIÇÃO DO NSGA'!$B14,1)-1),\" \")","v":"Vera"},{"$f":"IFERROR(LEFT('1 COMPOSIÇÃO DO NSGA'!$B15,SEARCH(\" \",'1 COMPOSIÇÃO DO NSGA'!$B15,1)-1),\" \")","v":"Luis"},{"$f":"IFERROR(LEFT('1 COMPOSIÇÃO DO NSGA'!$B16,SEARCH(\" \",'1 COMPOSIÇÃO DO NSGA'!$B16,1)-1),\" \")","v":"Leila"},{"$f":"IFERROR(LEFT('1 COMPOSIÇÃO DO NSGA'!$B17,SEARCH(\" \",'1 COMPOSIÇÃO DO NSGA'!$B17,1)-1),\" \")","v":"Lara"},{"$f":"IFERROR(LEFT('1 COMPOSIÇÃO DO NSGA'!$B18,SEARCH(\" \",'1 COMPOSIÇÃO DO NSGA'!$B18,1)-1),\" \")","v":"Lidio"},{"$f":"IFERROR(LEFT('1 COMPOSIÇÃO DO NSGA'!$B19,SEARCH(\" \",'1 COMPOSIÇÃO DO NSGA'!$B19,1)-1),\" \")","v":"Maria"},{"$f":"IFERROR(LEFT('1 COMPOSIÇÃO DO NSGA'!$B20,SEARCH(\" \",'1 COMPOSIÇÃO DO NSGA'!$B20,1)-1),\" \")","v":" "},{"$f":"IFERROR(LEFT('1 COMPOSIÇÃO DO NSGA'!$B21,SEARCH(\" \",'1 COMPOSIÇÃO DO NSGA'!$B21,1)-1),\" \")","v":" "}]
[null,null,{"$f":"IF('1 COMPOSIÇÃO DO NSGA'!D14=0,\" \",'1 COMPOSIÇÃO DO NSGA'!D14)","v":" Esposo (a)"},{"$f":"IF('1 COMPOSIÇÃO DO NSGA'!D15=0,\" \",'1 COMPOSIÇÃO DO NSGA'!D15)","v":" Esposo (a)"},{"$f":"IF('1 COMPOSIÇÃO DO NSGA'!D16=0,\" \",'1 COMPOSIÇÃO DO NSGA'!D16)","v":"Filho(a)"},{"$f":"IF('1 COMPOSIÇÃO DO NSGA'!D17=0,\" \",'1 COMPOSIÇÃO DO NSGA'!D17)","v":"Filho(a)"},{"$f":"IF('1 COMPOSIÇÃO DO NSGA'!D18=0,\" \",'1 COMPOSIÇÃO DO NSGA'!D18)","v":"Filho(a)"},{"$f":"IF('1 COMPOSIÇÃO DO NSGA'!D19=0,\" \",'1 COMPOSIÇÃO DO NSGA'!D19)","v":"Filho(a)"},{"$f":"IF('1 COMPOSIÇÃO DO NSGA'!D20=0,\" \",'1 COMPOSIÇÃO DO NSGA'!D20)","v":"Filho(a)"},{"$f":"IF('1 COMPOSIÇÃO DO NSGA'!D21=0,\" \",'1 COMPOSIÇÃO DO NSGA'!D21)","v":" "},null,{"$f":"IF('1 COMPOSIÇÃO DO NSGA'!D14=0,\" \",'1 COMPOSIÇÃO DO NSGA'!D14)","v":" Esposo (a)"},{"$f":"IF('1 COMPOSIÇÃO DO NSGA'!D15=0,\" \",'1 COMPOSIÇÃO DO NSGA'!D15)","v":" Esposo (a)"},{"$f":"IF('1 COMPOSIÇÃO DO NSGA'!D16=0,\" \",'1 COMPOSIÇÃO DO NSGA'!D16)","v":"Filho(a)"},{"$f":"IF('1 COMPOSIÇÃO DO NSGA'!D17=0,\" \",'1 COMPOSIÇÃO DO NSGA'!D17)","v":"Filho(a)"},{"$f":"IF('1 COMPOSIÇÃO DO NSGA'!D18=0,\" \",'1 COMPOSIÇÃO DO NSGA'!D18)","v":"Filho(a)"},{"$f":"IF('1 COMPOSIÇÃO DO NSGA'!D19=0,\" \",'1 COMPOSIÇÃO DO NSGA'!D19)","v":"Filho(a)"},{"$f":"IF('1 COMPOSIÇÃO DO NSGA'!D20=0,\" \",'1 COMPOSIÇÃO DO NSGA'!D20)","v":"Filho(a)"},{"$f":"IF('1 COMPOSIÇÃO DO NSGA'!D21=0,\" \",'1 COMPOSIÇÃO DO NSGA'!D21)","v":" "}]
["Trabalho mercantil e autoconsumo",{"$f":"IF('4 SUBSISTEMAS'!A14=0,\" \",'4 SUBSISTEMAS'!A14)","v":"Roçado"},3,3,0,2,1,null,null,null,null,1,2,0,0,0]
[null,{"$f":"IF('4 SUBSISTEMAS'!A15=0,\" \",'4 SUBSISTEMAS'!A15)","v":"Roçado Diversificado"},3,3,0,2,1,null,null,null,null,2,2,0,0,0]
[null,{"$f":"IF('4 SUBSISTEMAS'!A16=0,\" \",'4 SUBSISTEMAS'!A16)","v":"Algodão"},3,3,0,2,1,null,null,null,null,2,2,0,0,0]
[null,{"$f":"IF('4 SUBSISTEMAS'!A17=0,\" \",'4 SUBSISTEMAS'!A17)","v":"Bovinos"},1,3,0,3,1,null,null,null,null,1,2,0,0,0]
[null,{"$f":"IF('4 SUBSISTEMAS'!A18=0,\" \",'4 SUBSISTEMAS'!A18)","v":"Ovinos Caprinos"},2,3,0,3,1,null,null,null,null,1,2,0,0,0]
[null,{"$f":"IF('4 SUBSISTEMAS'!A19=0,\" \",'4 SUBSISTEMAS'!A19)","v":"Quintal Aves"},3,1,0,3,1,null,null,null,null,2,1,0,0,0]
[null,{"$f":"IF('4 SUBSISTEMAS'!A20=0,\" \",'4 SUBSISTEMAS'!A20)","v":"Quintal porcos"},3,2,0,3,1,null,null,null,null,2,1,0,0,0]
[null,{"$f":"IF('4 SUBSISTEMAS'!A21=0,\" \",'4 SUBSISTEMAS'!A21)","v":"Quintal frutas, horta e medicinais"},3,1,0,3,1,null,null,null,null,2,1,0,0,0]
[null,{"$f":"IF('4 SUBSISTEMAS'!A22=0,\" \",'4 SUBSISTEMAS'!A22)","v":"Comercialização"},3,3,0,3,1,null,null,null,null,2,2,0,0,0]
[null,{"$f":"IF('4 SUBSISTEMAS'!A23=0,\" \",'4 SUBSISTEMAS'!A23)","v":" "}]
[null,{"$f":"IF('4 SUBSISTEMAS'!A24=0,\" \",'4 SUBSISTEMAS'!A24)","v":" "}]
[]
[]
["Trabalho doméstico e cuidados","Cuidar das crianças",3,3,2,3,3,null,null,null,null,2,2,1,2]
[null,"Cuidar dos idosos",2,1,0,2,2,null,null,null,null,2,2]
[null,"Fazer comida",3,1,1,2,1,null,null,null,null,2,0,1,1]
[null,"Limpar a casa",3,1,null,null,null,null,null,null,null,2,0,1]
[null,"Lavar roupas",3,0,null,null,null,null,null,null,null,2]
[]
["Participação social",null,3,1,3,2,2,null,null,null,null,2,2,1,1,1]
[]
["Pluriatividade",null,0,0,0,0,0,0]
[null,null,{"$f":"SUM(C8:C29)","v":41},{"$f":"SUM(D8:D29)","v":29},6,33,17,0,0,0,null,{"$f":"SUM(L8:L29)","v":27},{"$f":"SUM(M8:M29)","v":21},4,4,1,0,0,0]

{"sheet":"DIVISAO","index":8,"n_rows":32,"n_cols":20,"rows_kept":32,"cut":false,"hidden":true,"merged":[[5,12,6,19],[6,0,7,0],[6,1,7,2],[0,0,1,14],[0,16,1,19],[28,0,28,2],[30,0,30,2],[22,0,26,1],[9,0,19,1],[5,3,6,10]]}
["AGRICULTURA FAMILIAR E AGROECOOGIA"]
[]
[]
[]
[]
[null,null,null,"Tempo dedicado",null,null,null,null,null,null,null,null,"Tomada de decisão"]
["NSGA:",{"$f":"'1 FICHA DE REGISTRO'!E8","v":"Família Leal"}]
[null,null,null,{"$f":"IFERROR(LEFT('1 COMPOSIÇÃO DO NSGA'!$B14,SEARCH(\" \",'1 COMPOSIÇÃO DO NSGA'!$B14,1)-1),\" \")","v":"Vera"},{"$f":"IFERROR(LEFT('1 COMPOSIÇÃO DO NSGA'!$B15,SEARCH(\" \",'1 COMPOSIÇÃO DO NSGA'!$B15,1)-1),\" \")","v":"Luis"},{"$f":"IFERROR(LEFT('1 COMPOSIÇÃO DO NSGA'!$B16,SEARCH(\" \",'1 COMPOSIÇÃO DO NSGA'!$B16,1)-1),\" \")","v":"Leila"},{"$f":"IFERROR(LEFT('1 COMPOSIÇÃO DO NSGA'!$B17,SEARCH(\" \",'1 COMPOSIÇÃO DO NSGA'!$B17,1)-1),\" \")","v":"Lara"},{"$f":"IFERROR(LEFT('1 COMPOSIÇÃO DO NSGA'!$B18,SEARCH(\" \",'1 COMPOSIÇÃO DO NSGA'!$B18,1)-1),\" \")","v":"Lidio"},{"$f":"IFERROR(LEFT('1 COMPOSIÇÃO DO NSGA'!$B19,SEARCH(\" \",'1 COMPOSIÇÃO DO NSGA'!$B19,1)-1),\" \")","v":"Maria"},{"$f":"IFERROR(LEFT('1 COMPOSIÇÃO DO NSGA'!$B20,SEARCH(\" \",'1 COMPOSIÇÃO DO NSGA'!$B20,1)-1),\" \")","v":" "},{"$f":"IFERROR(LEFT('1 COMPOSIÇÃO DO NSGA'!$B21,SEARCH(\" \",'1 COMPOSIÇÃO DO NSGA'!$B21,1)-1),\" \")","v":" "},null,{"$f":"IFERROR(LEFT('1 COMPOSIÇÃO DO NSGA'!$B14,SEARCH(\" \",'1 COMPOSIÇÃO DO NSGA'!$B14,1)-1),\" \")","v":"Vera"},{"$f":"IFERROR(LEFT('1 COMPOSIÇÃO DO NSGA'!$B15,SEARCH(\" \",'1 COMPOSIÇÃO DO NSGA'!$B15,1)-1),\" \")","v":"Luis"},{"$f":"IFERROR(LEFT('1 COMPOSIÇÃO DO NSGA'!$B16,SEARCH(\" \",'1 COMPOSIÇÃO DO NSGA'!$B16,1)-1),\" \")","v":"Leila"},{"$f":"IFERROR(LEFT('1 COMPOSIÇÃO DO NSGA'!$B17,SEARCH(\" \",'1 COMPOSIÇÃO DO NSGA'!$B17,1)-1),\" \")","v":"Lara"},{"$f":"IFERROR(LEFT('1 COMPOSIÇÃO DO NSGA'!$B18,SEARCH(\" \",'1 COMPOSIÇÃO DO NSGA'!$B18,1)-1),\" \")","v":"Lidio"},{"$f":"IFERROR(LEFT('1 COMPOSIÇÃO DO NSGA'!$B19,SEARCH(\" \",'1 COMPOSIÇÃO DO NSGA'!$B19,1)-1),\" \")","v":"Maria"},{"$f":"IFERROR(LEFT('1 COMPOSIÇÃO DO NSGA'!$B20,SEARCH(\" \",'1 COMPOSIÇÃO DO NSGA'!$B20,1)-1),\" \")","v":" "},{"$f":"IFERROR(LEFT('1 COMPOSIÇÃO DO NSGA'!$B21,SEARCH(\" \",'1 COMPOSIÇÃO DO NSGA'!$B21,1)-1),\" \")","v":" "}]
[null,null,null,{"$f":"IF('1 COMPOSIÇÃO DO NSGA'!D14=0,\" \",'1 COMPOSIÇÃO DO NSGA'!D14)","v":" Esposo (a)"},{"$f":"IF('1 COMPOSIÇÃO DO NSGA'!D15=0,\" \",'1 COMPOSIÇÃO DO NSGA'!D15)","v":" Esposo (a)"},{"$f":"IF('1 COMPOSIÇÃO DO NSGA'!D16=0,\" \",'1 COMPOSIÇÃO DO NSGA'!D16)","v":"Filho(a)"},{"$f":"IF('1 COMPOSIÇÃO DO NSGA'!D17=0,\" \",'1 COMPOSIÇÃO DO NSGA'!D17)","v":"Filho(a)"},{"$f":"IF('1 COMPOSIÇÃO DO NSGA'!D18=0,\" \",'1 COMPOSIÇÃO DO NSGA'!D18)","v":"Filho(a)"},{"$f":"IF('1 COMPOSIÇÃO DO NSGA'!D19=0,\" \",'1 COMPOSIÇÃO DO NSGA'!D19)","v":"Filho(a)"},{"$f":"IF('1 COMPOSIÇÃO DO NSGA'!D20=0,\" \",'1 COMPOSIÇÃO DO NSGA'!D20)","v":"Filho(a)"},{"$f":"IF('1 COMPOSIÇÃO DO NSGA'!D21=0,\" \",'1 COMPOSIÇÃO DO NSGA'!D21)","v":" "},null,{"$f":"IF('1 COMPOSIÇÃO DO NSGA'!D14=0,\" \",'1 COMPOSIÇÃO DO NSGA'!D14)","v":" Esposo (a)"},{"$f":"IF('1 COMPOSIÇÃO DO NSGA'!D15=0,\" \",'1 COMPOSIÇÃO DO NSGA'!D15)","v":" Esposo (a)"},{"$f":"IF('1 COMPOSIÇÃO DO NSGA'!D16=0,\" \",'1 COMPOSIÇÃO DO NSGA'!D16)","v":"Filho(a)"},{"$f":"IF('1 COMPOSIÇÃO DO NSGA'!D17=0,\" \",'1 COMPOSIÇÃO DO NSGA'!D17)","v":"Filho(a)"},{"$f":"IF('1 COMPOSIÇÃO DO NSGA'!D18=0,\" \",'1 COMPOSIÇÃO DO NSGA'!D18)","v":"Filho(a)"},{"$f":"IF('1 COMPOSIÇÃO DO NSGA'!D19=0,\" \",'1 COMPOSIÇÃO DO NSGA'!D19)","v":"Filho(a)"},{"$f":"IF('1 COMPOSIÇÃO DO NSGA'!D20=0,\" \",'1 COMPOSIÇÃO DO NSGA'!D20)","v":"Filho(a)"},{"$f":"IF('1 COMPOSIÇÃO DO NSGA'!D21=0,\" \",'1 COMPOSIÇÃO DO NSGA'!D21)","v":" "}]
["Trabalho mercantil e autoconsumo",null,{"$f":"IF('4 SUBSISTEMAS'!A14=0,\" \",'4 SUBSISTEMAS'!A14)","v":"Roçado"},2,1,0,3,null,null,null,null,null,1]
[null,null,{"$f":"IF('4 SUBSISTEMAS'!A15=0,\" \",'4 SUBSISTEMAS'!A15)","v":"Roçado Diversificado"}]
[null,null,{"$f":"IF('4 SUBSISTEMAS'!A16=0,\" \",'4 SUBSISTEMAS'!A16)","v":"Algodão"}]
[null,null,{"$f":"IF('4 SUBSISTEMAS'!A17=0,\" \",'4 SUBSISTEMAS'!A17)","v":"Bovinos"}]
[null,null,{"$f":"IF('4 SUBSISTEMAS'!A18=0,\" \",'4 SUBSISTEMAS'!A18)","v":"Ovinos Caprinos"}]
[null,null,{"$f":"IF('4 SUBSISTEMAS'!A19=0,\" \",'4 SUBSISTEMAS'!A19)","v":"Quintal Aves"}]
[null,null,{"$f":"IF('4 SUBSISTEMAS'!A20=0,\" \",'4 SUBSISTEMAS'!A20)","v":"Quintal porcos"}]
[null,null,{"$f":"IF('4 SUBSISTEMAS'!A21=0,\" \",'4 SUBSISTEMAS'!A21)","v":"Quintal frutas, horta e medicinais"}]
[null,null,{"$f":"IF('4 SUBSISTEMAS'!A22=0,\" \",'4 SUBSISTEMAS'!A22)","v":"Comercialização"}]
[null,null,{"$f":"IF('4 SUBSISTEMAS'!A23=0,\" \",'4 SUBSISTEMAS'!A23)","v":" "}]
[null,null,{"$f":"IF('4 SUBSISTEMAS'!A24=0,\" \",'4 SUBSISTEMAS'!A24)","v":" "}]
[]
[]
["Trabalho doméstico e cuidados",null,"Cuidar das crianças"]
[null,null,"Cuidar dos idosos"]
[null,null,"Fazer comida"]
[null,null,"Limpar a casa"]
[null,null,"Lavar roupa"]
[]
["Participação social"]
[]
["Pluriatividade"]
[null,null,null,{"$f":"SUM(D10:D31)","v":2},{"$f":"SUM(E10:E31)","v":1},0,3,0,0,0,0,null,{"$f":"SUM(M10:M31)","v":1},{"$f":"SUM(N10:N31)","v":0},0,0,0,0,0,0]

{"sheet":"6 ANÁLISE QUALITATIVA","index":9,"n_rows":21,"n_cols":11,"rows_kept":21,"cut":false,"hidden":false,"merged":[[3,1,3,12],[7,2,7,3],[0,0,0,13],[12,0,12,1],[12,2,12,3],[9,10,9,12],[7,10,7,12],[12,4,12,5],[9,2,9,3],[9,4,9,6],[7,4,7,7],[11,9,11,10],[11,11,11,12],[18,6,18,10],[13,1,13,12],[14,1,15,2],[18,4,18,5],[18,1,19,3]]}
["Análise Qualitativa de Sustentabilidade"]
[]
[]
[]
[]
[]
[]
[null,null,"NSGA",null,{"$f":"PRINCIPAL!E9","v":"Família Silva"},null,null,null,null,"MUNÍCIPIO",{"$f":"PRINCIPAL!H13","v":"Solânea"}]
[]
[null,null,"COMUNIDADE",null,{"$f":"PRINCIPAL!E16","v":"Gameleira"},null,null,null,null,"ESTADO",{"$f":"PRINCIPAL!D13","v":"PB"}]
[]
[null,null,null,null,null,null,null,null,null,"POSSUI JOVENS NO NSGA?"]
[]
[null,"ATRIBUTOS DE SUSTENTABILIDADE"]
[]
[]
[]
[]
[null,"PERÍODO DE ANÁLISE",null,null,null,null,"QUALIFICAÇÃO"]
[null,null,null,null,null,null,"MUITO BAIXA","BAIXA","MÉDIA","ALTA","MUITO ALTO"]
[null,2000,null,2022,null,null,1,2,3,4,5]

{"sheet":"AUTONOMIA","index":10,"n_rows":27,"n_cols":9,"rows_kept":27,"cut":false,"hidden":false,"merged":[[25,0,25,5],[26,0,26,5],[25,6,25,9],[26,6,26,9],[24,3,24,7],[19,6,19,7],[21,8,21,9],[20,6,20,7],[16,0,21,0],[16,1,16,3],[17,1,17,3],[18,1,18,3],[19,1,19,3],[20,1,20,3],[21,1,21,3],[16,8,16,9],[21,6,21,7],[18,8,18,9],[19,8,19,9],[20,8,20,9],[8,8,8,9],[16,6,16,7],[17,6,17,7],[18,6,18,7],[14,1,14,3],[15,1,15,3],[14,6,14,7],[15,6,15,7],[9,8,9,9],[10,8,10,9],[11,8,11,9],[12,8,12,9],[13,8,13,9],[14,8,14,9],[15,8,15,9],[17,8,17,9],[0,0,2,2],[6,0,7,3],[0,3,2,9],[6,6,7,7],[6,8,7,9],[12,1,12,3],[13,1,13,3],[12,6,12,7],[13,6,13,7],[8,0,15,0],[8,6,8,7],[9,6,9,7],[10,6,10,7],[11,6,11,7],[11,1,11,3],[8,1,8,3],[9,1,9,3],[10,1,10,3]]}
[null,null,null,"AUTONOMIA"]
[]
[]
[]
[]
[]
["Parâmetro",null,null,null,"ANO REFERÊNCIA","ANO ATUAL","MUDANÇAS E INOVAÇÕES NO PERÍODO",null,"JUSTIFICATIVAS"]
[null,null,null,null,{"$f":"'6 ANÁLISE QUALITATIVA'!B21","v":2000},{"$f":"'6 ANÁLISE QUALITATIVA'!D21","v":2022}]
["BASE DE RECURSOS AUTOCONTROLADA","Equipamentos/Infraestrutura",null,null,1,3]
[null,"Capacidade de Trabalho",null,null,2,5]
[null,"Forragem/Ração",null,null,2,5]
[null,"Fertilidade do Solo",null,null,2,5]
[null,"Disponibilidade de Água",null,null,2,5]
[null,"Biodiversidade",null,null,2,5]
[null,"Disponibilidade de Terra",null,null,2,5]
[null,"Autoabastecimento alimentar",null,null,2,5]
["RECURSOS PRODUTIVOS MERCANTIS","Terra de terceiros",null,null,2,5]
[null,"Sementes, mudas, mat. propag., crias",null,null,2,5]
[null,"Água",null,null,2,5]
[null,"Fertilizantes",null,null,2,5]
[null,"Forragem/Ração",null,null,2,5]
[null,"Trabalho de terceiros",null,null,2,5]
[]
[]
[null,null,null,"ÍNDICE DE AUTONOMIA (0-1)"]
[{"$f":"'6 ANÁLISE QUALITATIVA'!B21","v":2000},null,null,null,null,null,{"$f":"'6 ANÁLISE QUALITATIVA'!D21","v":2022}]
[{"$f":"((SUM(E9:E16)+SUM(E17:E22))-14)*1/56","v":0.23214285714285715},null,null,null,null,null,{"$f":"((SUM(F9:F16)+SUM(F17:F22))-14)*1/56","v":0.9642857142857143}]

{"sheet":"RESPONSIVIDADE","index":11,"n_rows":17,"n_cols":8,"rows_kept":17,"cut":false,"hidden":false,"merged":[[14,0,14,8],[15,0,15,5],[15,6,15,8],[16,0,16,5],[16,6,16,8],[12,0,12,2],[12,5,12,6],[12,7,12,8],[9,5,9,6],[9,7,9,8],[10,0,10,2],[10,5,10,6],[10,7,10,8],[11,0,11,2],[11,5,11,6],[11,7,11,8],[8,0,8,2],[8,5,8,6],[8,7,8,8],[9,0,9,2],[0,0,2,1],[0,2,2,8],[6,5,7,6],[6,7,7,8],[6,0,6,2]]}
[null,null,"RESPONSIVIDADE"]
[]
[]
[]
[]
[]
["Parâmetros",null,null,"ANO REFERÊNCIA","ANO ATUAL","MUDANÇAS E INOVAÇÕES NO PERÍODO",null,"JUSTIFICATIVAS"]
[null,null,null,{"$f":"'6 ANÁLISE QUALITATIVA'!B21","v":2000},{"$f":"'6 ANÁLISE QUALITATIVA'!D21","v":2022}]
["Biodiversidade (Planejada ou associada)",null,null,2,5]
["Diversidade de Mercados Acessados",null,null,1,5]
["Diversidade de Rendas (agrícolas e não-agrícolas)",null,null,1,5]
["Estoques de Insumos",null,null,1,5]
["Estoques Vivos",null,null,3,5]
[]
["ÍNDICE DE RESPONSIVIDADE (0-1)"]
[{"$f":"'6 ANÁLISE QUALITATIVA'!B21","v":2000},null,null,null,null,null,{"$f":"'6 ANÁLISE QUALITATIVA'!D21","v":2022}]
[{"$f":"(SUM(D9:D13)-5)*1/20","v":0.15},null,null,null,null,null,{"$f":"(SUM(E9:E13)-5)*1/20","v":1}]

{"sheet":"INTEGRAÇÃO SOCIAL","index":12,"n_rows":17,"n_cols":8,"rows_kept":17,"cut":false,"hidden":false,"merged":[[16,0,16,5],[16,6,16,8],[10,7,10,8],[12,0,12,2],[12,5,12,6],[12,7,12,8],[14,0,14,8],[11,0,11,2],[11,5,11,6],[11,7,11,8],[10,0,10,2],[10,5,10,6],[15,0,15,5],[15,6,15,8],[0,0,2,1],[0,2,2,8],[6,0,7,2],[6,5,7,6],[6,7,7,8],[8,0,8,2],[8,5,8,6],[8,7,8,8],[9,0,9,2],[9,5,9,6],[9,7,9,8]]}
[null,null,"INTEGRAÇÃO SOCIAL"]
[]
[]
[]
[]
[]
["Parâmetros",null,null,"ANO REFERÊNCIA","ANO ATUAL","MUDANÇAS E INOVAÇÕES NO PERÍODO",null,"JUSTIFICATIVAS"]
[null,null,null,{"$f":"'6 ANÁLISE QUALITATIVA'!B21","v":2000},{"$f":"'6 ANÁLISE QUALITATIVA'!D21","v":2022}]
["Participação em espaços político-organizativos",null,null,3,3]
["Acesso a políticas públicas",null,null,4,5]
["Participação em redes sociotécnicas de aprendizagem",null,null,1,4]
["Apropriação de riqueza produzida no agroecossistema pelo NSGA",null,null,2,3]
["Participação em espaços de gestão de bens comuns",null,null,3,3]
[]
["ÍNDICE DE INTEGRAÇÃO SOCIAL (0-1)"]
[{"$f":"'6 ANÁLISE QUALITATIVA'!B21","v":2000},null,null,null,null,null,{"$f":"'6 ANÁLISE QUALITATIVA'!D21","v":2022}]
[{"$f":"(SUM(D9:D13)-5)*1/20","v":0.4},null,null,null,null,null,{"$f":"(SUM(E9:E13)-5)*1/20","v":0.65}]

{"sheet":"EQUIDADE DE GÊNERO","index":13,"n_rows":18,"n_cols":8,"rows_kept":18,"cut":false,"hidden":false,"merged":[[12,0,12,2],[12,5,12,6],[12,7,12,8],[13,0,13,2],[13,5,13,6],[13,7,13,8],[15,0,15,8],[16,0,16,5],[16,6,16,8],[17,0,17,5],[17,6,17,8],[10,7,10,8],[11,0,11,2],[11,5,11,6],[11,7,11,8],[0,2,2,8],[6,5,7,6],[6,7,7,8],[8,0,8,2],[8,5,8,6],[8,7,8,8],[9,0,9,2],[6,0,7,2],[9,5,9,6],[9,7,9,8],[10,0,10,2],[10,5,10,6]]}
[null,null,"EQUIDADE DE GÊNERO / PROTAGONISMO DAS MULHERES"]
[]
[]
[]
[]
[]
["Parâmetro",null,null,"ANO REFERÊNCIA","ANO ATUAL","MUDANÇAS E INOVAÇÕES NO PERÍODO",null,"JUSTIFICATIVAS"]
[null,null,null,{"$f":"'6 ANÁLISE QUALITATIVA'!B21","v":2000},{"$f":"'6 ANÁLISE QUALITATIVA'!D21","v":2022}]
["Divisão sexual do trabalho doméstico e de cuidados (adultos)",null,null,2,2]
["Divisão sexual do trabalho doméstico e de cuidados (jovens)",null,null,2,5]
["Participação nas decisões de gestão do agroecossistema",null,null,2,5]
["Participação em espaços sócio-organizativos",null,null,2,5]
["Apropriação da riqueza gerada no agroecossistema",null,null,2,5]
["Acesso a políticas públicas",null,null,2,5]
[]
["ÍNDICE DE EQUIDADE DE GÊNERO / PROTAGONISMO DAS MULHERES (0-1)"]
[{"$f":"'6 ANÁLISE QUALITATIVA'!B21","v":2000},null,null,null,null,null,{"$f":"'6 ANÁLISE QUALITATIVA'!D21","v":2022}]
[{"$f":"(SUM(D9:D14)-6)*1/24","v":0.25},null,null,null,null,null,{"$f":"SUM(E9:E14)*1/30","v":0.9}]

{"sheet":"PROTAGONISMO DA JUVENTU","index":14,"n_rows":17,"n_cols":8,"rows_kept":17,"cut":false,"hidden":false,"merged":[[14,0,14,8],[15,0,15,5],[16,0,16,5],[15,6,15,8],[16,6,16,8],[11,0,11,2],[11,5,11,6],[11,7,11,8],[12,0,12,2],[12,5,12,6],[12,7,12,8],[9,0,9,2],[9,5,9,6],[9,7,9,8],[10,0,10,2],[10,5,10,6],[10,7,10,8],[0,2,2,8],[6,0,7,2],[6,5,7,6],[6,7,7,8],[8,0,8,2],[8,5,8,6],[8,7,8,8]]}
[null,null,"PROTAGONISMO DA JUVENTUDE"]
[]
[]
[]
[]
[]
["Parâmetro",null,null,"ANO REFERÊNCIA","ANO ATUAL","MUDANÇAS E INOVAÇÕES NO PERÍODO",null,"JUSTIFICATIVAS"]
[null,null,null,{"$f":"'6 ANÁLISE QUALITATIVA'!B21","v":2000},{"$f":"'6 ANÁLISE QUALITATIVA'!D21","v":2022}]
["Participação em espaços de aprendizagem",null,null,3,2]
["Participação nas decisões de gestão do agroecossistema",null,null,4,2]
["Participação em espaços político-organizativos",null,null,1,2]
["Acesso à políticas públicas",null,null,5,2]
["Autonomia econômica",null,null,3,2]
[]
["ÍNDICE DE PROTAGONISMO DA JUVENTUDE (0-1)"]
[{"$f":"'6 ANÁLISE QUALITATIVA'!B21","v":2000},null,null,null,null,null,{"$f":"'6 ANÁLISE QUALITATIVA'!D21","v":2022}]
[{"$f":"(SUM(D9:D13)-5)*1/20","v":0.55000000000000004},null,null,null,null,null,{"$f":"(SUM(E9:E13)-5)*1/20","v":0.25}]

{"sheet":"SÍNTESE","index":15,"n_rows":17,"n_cols":6,"rows_kept":17,"cut":false,"hidden":false,"merged":[[13,0,14,3],[15,0,15,1],[15,2,15,3],[16,0,16,1],[16,2,16,3],[0,1,2,3],[11,0,11,1],[12,0,12,1],[9,0,9,1],[10,0,10,1],[6,0,7,1],[8,0,8,1]]}
[null,"SÍNTESE"]
[]
[]
[]
[]
[]
["Parâmetro",null,"ANO REFERÊNCIA","ANO ATUAL"]
[null,null,{"$f":"'6 ANÁLISE QUALITATIVA'!B21","v":2000},{"$f":"'6 ANÁLISE QUALITATIVA'!D21","v":2022}]
["AUTONOMIA",null,{"$f":"AUTONOMIA!A27","v":0.23214285714285715},{"$f":"AUTONOMIA!G27","v":0.9642857142857143}]
["RESPONSIVIDADE",null,{"$f":"RESPONSIVIDADE!A17","v":0.15},{"$f":"RESPONSIVIDADE!G17","v":1}]
["INTEGRAÇÃO SOCIAL",null,{"$f":"'INTEGRAÇÃO SOCIAL'!A17","v":0.4},{"$f":"'INTEGRAÇÃO SOCIAL'!G17","v":0.65}]
["EQUIDADE DE GÊNERO PROTAGONISMO DAS MULHERES",null,{"$f":"'EQUIDADE DE GÊNERO'!A18","v":0.25},{"$f":"'EQUIDADE DE GÊNERO'!G18","v":0.9}]
["PROTAGONISMO DA JUVENTUDE",null,{"$f":"'PROTAGONISMO DA JUVENTU'!A17","v":0.55000000000000004},{"$f":"'PROTAGONISMO DA JUVENTU'!G17:I17","v":0.25},0,0]
["ÍNDICE DE SÍNTESE (0-1)"]
[]
[{"$f":"'6 ANÁLISE QUALITATIVA'!B21","v":2000},null,{"$f":"'6 ANÁLISE QUALITATIVA'!D21","v":2022}]
[{"$f":"SUM(C9:C13)/5","v":0.31642857142857139},null,{"$f":"SUM(D9:D13)/5","v":0.75285714285714289}]